[Event "4NCL 2023-2024"]
[Site "Daventry"]
[Date "2024.05.04"]
[Round "9.28"]
[White "Pein, Jonathan"]
[Black "Bates, Richard A"]
[Result "1-0"]
[ECO "B51"]
[WhiteElo "2272"]
[BlackElo "2315"]
[Annotator "TA"]
[PlyCount "93"]
[EventDate "2023.11.11"]
[EventType "team-tourn"]
[EventCountry "ENG"]
[SourceTitle "playchess.com"]
[Source "ChessBase"]
[SourceQuality "1"]
[TimeControl "40/6000+30:3000+30"]

{[%evp 16,93,32,22,36,30,35,38,41,43,32,43,60,54,50,57,53,47,55,58,65,65,72,63,76,67,72,70,86,91,87,87,100,81,100,97,147,134,129,106,241,73,122,117,110,107,145,108,160,124,158,113,125,105,91,91,120,108,106,93,93,70,93,81,84,79,115,115,131,131,177,177,177,136,172,141,138,118,131,131]} 1. e4 {[%emt 0:00:03]} c5 {[%emt 0:00:38]} 2. Nf3 {[%emt 0:00:06]} d6 {[%emt 0:00:34]} 3. Nc3 {[%emt 0:00:07]} Nf6 {[%emt 0:01:32]} 4. d4 {[%emt 0:00:07]} cxd4 {[%emt 0:00:10]} 5. Qxd4 {[%emt 0:00:07]} e5 {[%emt 0:04:22]} 6. Bb5+ {[%emt 0:01:14]} Nbd7 {[%emt 0:02:11]} 7. Qd3 {[%emt 0:00:24]} h6 {[%emt 0:07:18]} 8. Be3 {[%emt 0:00:38]} Be7 {[%emt 0:03:22]} 9. Bc4 {[%emt 0:00:46]} a6 {[%emt 0:05:43]} 10. a4 {[%emt 0:01:42]} O-O {[%emt 0:01:12]} 11. O-O {[%emt 0:00:26]} Qc7 {[%emt 0:06:08] White is slightly better.} 12. Nh4 {[%emt 0:00:17] And now Ng6 would win.} Nc5 {[%emt 0:35:35]} 13. Bxc5 {[%emt 0:00:08]} Qxc5 {[%emt 0:00:29]} 14. Bb3 {[%emt 0:00:14]} Re8 {[%emt 0:07:19]} 15. Nf5 {[%emt 0:09:30]} Bxf5 {[%emt 0:02:49]} 16. exf5 {[%emt 0:00:06]} Rac8 {[%emt 0:04:55][%cal Od6d5,Ba8c8,Bc8c7,Bc7c5][%mdl 32]} 17. Rad1 {[%emt 0:03:20]} Red8 {[%emt 0:03:55]} 18. Rfe1 {[%emt 0:02:02] Repels d5} Kf8 {[%emt 0:09:55]} 19. g3 {[%emt 0:04:47]} Rc7 {[%emt 0:04:26]} 20. Qe2 $40 {[%emt 0:26:10][%mdl 128] White has some attack.} Qb4 {[%emt 0:01:49]} 21. Rd3 {[%emt 0:15:51]} b5 {[%emt 0:03:02]} 22. axb5 {[%emt 0:02:45]} axb5 {[%emt 0:00:04]} 23. Red1 {[%emt 0:01:53]} Rc5 {[%emt 0:03:01]} 24. h4 {[%emt 0:12:08]} Rdc8 {[%emt 0:00:28]} 25. Nd5 {[%emt 0:13:49]} Nxd5 {[%emt 0:00:05]} (25... Qe4 $142 26. Qxe4 Nxe4) 26. Rxd5 {[%emt 0:02:37]} Rxd5 {[%emt 0:00:13]} 27. Rxd5 {[%emt 0:02:54]} Rc5 {[%emt 0:00:39]} (27... Rb8 $16 28. Rd3 Kg8) 28. Rxc5 $2 {[%emt 0:07:06]} (28. Rd1 $18 {and the rest is easy. Threatens to win with Qh5.} Bf6 29. Ra1 (29. Rxd6 Rxc2 30. Bxc2 Qxd6 $16)) 28... Qxc5 $18 {[%emt 0:00:10][%mdl 4096] Endgame. KQB-KQB} ({Black should try} 28... dxc5 29. Qxe5 Qa5) 29. Qf3 $16 {[%emt 0:01:03]} d5 {[%emt 0:00:32]} 30. Bxd5 {[%emt 0:00:41]} Qc7 {[%emt 0:02:06]} (30... Qxc2 31. Qh5 g6 32. Qxh6+ Ke8 33. Qh8+ Kd7 34. Bxf7 (34. Qxe5 Bc5 $16) 34... gxf5 35. Qxe5 $18) 31. Bb3 {[%emt 0:00:27]} Bc5 {[%emt 0:00:13]} ({Black should play} 31... b4 32. Qe4 Bc5) 32. Kg2 {[%emt 0:02:09]} Ke7 {[%emt 0:00:34]} 33. Qh5 {[%emt 0:00:49]} Qc6+ {[%emt 0:00:35]} 34. f3 {[%emt 0:00:25]} Qf6 {[%emt 0:00:27]} 35. Qg4 {[%emt 0:00:08]} Kf8 {[%emt 0:00:52]} 36. Qe4 {[%emt 0:00:08] [#] Strongly threatening Qa8+.} Kg8 {[%emt 0:00:05]} 37. Qa8+ {[%emt 0:01:00]} Bf8 {[%emt 0:00:31]} 38. Qd5 {[%emt 0:00:50] White is more active.} b4 {[%emt 0:00:43]} 39. g4 {[%emt 0:00:30]} h5 {[%emt 0:00:24]} 40. Qc4 {[%emt 0:00:31]} ({Reject} 40. gxh5 $6 Qxf5 41. h6 gxh6 $11) 40... e4 {[%emt 0:00:39]} 41. Qxe4 {[%emt 0:04:56]} hxg4 {[%emt 0:04:53]} 42. fxg4 {[%emt 0:01:44]} Qxh4 {[%emt 0:08:19] [#]} (42... Bd6 $16 43. Qe8+ Bf8) 43. Bxf7+ $1 $18 {[%emt 0:00:40][%mdl 512]} Kh8 {[%emt 0:00:13]} 44. Bb3 {[%emt 0:02:35]} Qf6 {[%emt 0:09:52]} 45. Qd5 {[%emt 0:14:05][%csl Gb3][%cal Rd5g8]} Kh7 {[%emt 0:01:00]} 46. Kf3 {[%emt 0:05:49] White threatens Qg8+ and mate.} Kh6 {[%emt 0:00:50]} 47. Qd2+ {[%emt 0:01:20] Weighted Error Value: White=0.15 (very precise) /Black=0.18 (very precise) .  Missed win:     	White=1     	---        Mistake:       	---       	Black=5      Inaccurate:     	---       	Black=3      OK:         	White=12    	Black=7      Best:        	White=2     	Black=2      Brilliant:      	White=1     	---} 1-0

[Event "4NCL 2023-2024"]
[Site "Daventry"]
[Date "2024.05.04"]
[Round "9.29"]
[White "Varney, Zoe"]
[Black "Gallana, Marco"]
[Result "0-1"]
[ECO "B25"]
[WhiteElo "2070"]
[BlackElo "2260"]
[Annotator "ChessBase"]
[PlyCount "66"]
[EventDate "2023.11.11"]
[EventType "team-tourn"]
[EventCountry "ENG"]
[SourceTitle "playchess.com"]
[Source "ChessBase"]
[SourceQuality "1"]
[TimeControl "40/6000+30:3000+30"]

1. e4 {[%emt 0:00:05]} c5 {[%emt 0:06:05]} 2. Nc3 {[%emt 0:00:17]} Nc6 {[%emt 0:00:53]} 3. Nge2 {[%emt 0:00:11]} Nf6 {[%emt 0:03:54]} 4. g3 {[%emt 0:00:20]} d6 {[%emt 0:05:23]} 5. h3 {[%emt 0:05:20]} g6 {[%emt 0:00:33]} 6. Bg2 {[%emt 0:00:15]} Bg7 {[%emt 0:00:20]} 7. O-O {[%emt 0:00:34]} O-O {[%emt 0:00:16]} 8. d3 {[%emt 0:05:03]} Rb8 {[%emt 0:07:44]} 9. a4 {[%emt 0:01:23]} Ne8 {[%emt 0:02:44]} 10. f4 {[%emt 0:04:44]} Nc7 {[%emt 0:00:45]} 11. g4 {[%emt 0:11:47]} a6 {[%emt 0:03:30]} 12. g5 {[%emt 0:20:31]} b5 {[%emt 0:03:32]} 13. axb5 {[%emt 0:00:32]} axb5 {[%emt 0:00:09]} 14. Ng3 {[%emt 0:01:05]} b4 {[%emt 0:17:13]} 15. Nce2 {[%emt 0:01:20]} Nb5 {[%emt 0:00:19]} 16. f5 {[%emt 0:16:58]} Be5 {[%emt 0:09:11]} 17. h4 {[%emt 0:07:12]} Ncd4 {[%emt 0:08:19]} 18. Nxd4 {[%emt 0:07:22]} Nxd4 {[%emt 0:00:55]} 19. Bf4 {[%emt 0:00:48]} Bd7 {[%emt 0:05:29]} 20. Bxe5 {[%emt 0:07:14]} dxe5 {[%emt 0:00:27]} 21. h5 {[%emt 0:12:46]} b3 {[%emt 0:06:54]} 22. cxb3 {[%emt 0:02:05]} Rxb3 {[%emt 0:02:01]} 23. Ra3 {[%emt 0:03:17]} Rxb2 {[%emt 0:02:28]} 24. Qc1 {[%emt 0:00:26]} Qb6 {[%emt 0:09:33]} 25. Rc3 {[%emt 0:00:20]} Rc8 {[%emt 0:02:46]} 26. hxg6 {[%emt 0:00:19]} hxg6 {[%emt 0:00:14]} 27. f6 {[%emt 0:00:22]} e6 {[%emt 0:03:15]} 28. Qe3 {[%emt 0:01:05]} Rxg2+ {[%emt 0:05:32]} 29. Kxg2 {[%emt 0:00:04]} Qb2+ {[%emt 0:00:06]} 30. Rf2 {[%emt 0:00:51]} Qxc3 {[%emt 0:00:04]} 31. Ne2 {[%emt 0:00:40]} Qe1 {[%emt 0:02:29]} 32. Qh3 {[%emt 0:00:25]} Nxe2 {[%emt 0:00:30]} 33. Rf1 {[%emt 0:00:31]} Qg3+ {[%emt 0:01:41]} 0-1

[Event "4NCL 2023-2024"]
[Site "Daventry"]
[Date "2024.05.04"]
[Round "9.30"]
[White "Maciol, Ryszard"]
[Black "Webb, Laurence E"]
[Result "0-1"]
[ECO "E48"]
[WhiteElo "2127"]
[BlackElo "2203"]
[Annotator "RC"]
[PlyCount "130"]
[EventDate "2023.11.11"]
[EventType "team-tourn"]
[EventCountry "ENG"]
[SourceTitle "playchess.com"]
[Source "ChessBase"]
[SourceQuality "1"]
[TimeControl "40/6000+30:3000+30"]

1. d4 {[%emt 0:00:03]} Nf6 {[%emt 0:00:10]} 2. c4 {[%emt 0:00:11]} e6 {[%emt 0:00:30]} 3. Nc3 {[%emt 0:00:23]} Bb4 {[%emt 0:00:21]} 4. e3 {[%emt 0:00:06]} c5 {[%emt 0:01:06]} 5. Bd3 {[%emt 0:00:34]} Nc6 {[%emt 0:00:18]} 6. Nge2 {[%emt 0:02:19]} cxd4 {[%emt 0:02:08]} 7. exd4 {[%emt 0:00:05]} d5 {[%emt 0:00:13]} 8. cxd5 {[%emt 0:00:47]} Nxd5 {[%emt 0:00:57]} 9. O-O {[%emt 0:00:19]} O-O {[%emt 0:00:48]} 10. Bc2 {[%emt 0:06:20]} Re8 {[%emt 0:01:23]} 11. Qd3 {[%emt 0:05:02]} g6 {[%emt 0:00:13]} 12. Ne4 {[%emt 0:06:32]} Bf8 {[%emt 0:06:27]} 13. a3 {[%emt 0:06:35]} Bg7 {[%emt 0:05:39]} 14. Bg5 {[%emt 0:12:06]} Nce7 {[%emt 0:05:21]} 15. Rac1 {[%emt 0:05:35]} b6 {[%emt 0:12:13]} 16. Ba4 {[%emt 0:15:38]} Bd7 {[%emt 0:01:56]} 17. Bb3 {[%emt 0:00:23]} f6 {[%emt 0:04:59]} 18. Bd2 {[%emt 0:03:53]} Bc6 {[%emt 0:04:28]} 19. h4 {[%emt 0:11:44]} Qd7 {[%emt 0:04:38]} 20. N2c3 {[%emt 0:05:43]} Rac8 {[%emt 0:05:49]} 21. h5 {[%emt 0:01:52]} Nxc3 {[%emt 0:02:34]} 22. bxc3 {[%emt 0:02:30]} Bd5 {[%emt 0:05:21]} 23. c4 {[%emt 0:04:43]} Bxe4 {[%emt 0:02:12]} 24. Qxe4 {[%emt 0:00:04]} f5 {[%emt 0:00:51]} 25. Qe2 {[%emt 0:02:35]} Nc6 {[%emt 0:11:35]} 26. hxg6 {[%emt 0:09:54]} hxg6 {[%emt 0:00:53]} 27. Bg5 {[%emt 0:00:30]} Nxd4 {[%emt 0:13:53]} 28. Qd3 {[%emt 0:00:04]} Qf7 {[%emt 0:03:11]} 29. Ba2 {[%emt 0:00:32]} Bf6 {[%emt 0:02:37]} 30. Be3 {[%emt 0:04:18]} Rcd8 {[%emt 0:01:40]} 31. Bxd4 {[%emt 0:01:04]} Bxd4 {[%emt 0:00:21]} 32. Qe2 {[%emt 0:00:25]} Bc5 {[%emt 0:00:37]} 33. Rc3 {[%emt 0:00:39]} Qf6 {[%emt 0:01:14]} 34. Rh3 {[%emt 0:00:49]} Kg7 {[%emt 0:01:19]} 35. Qf3 {[%emt 0:01:18]} Rh8 {[%emt 0:04:15]} 36. Rxh8 {[%emt 0:01:21]} Kxh8 {[%emt 0:00:37]} 37. g3 {[%emt 0:00:51]} Kg7 {[%emt 0:00:44]} 38. Bb3 {[%emt 0:00:57]} e5 {[%emt 0:01:02]} 39. Qb7+ {[%emt 0:00:39]} Qe7 {[%emt 0:00:34]} 40. Qc6 {[%emt 0:00:19]} Qd6 {[%emt 0:02:24]} 41. Qb7+ {[%emt 0:03:40]} Rd7 {[%emt 0:00:56]} 42. Qg2 {[%emt 0:00:09]} e4 {[%emt 0:02:09]} 43. Rd1 {[%emt 0:02:24]} Qe7 {[%emt 0:15:29]} 44. Rxd7 {[%emt 0:12:34]} Qxd7 {[%emt 0:00:09]} 45. g4 {[%emt 0:00:11]} e3 {[%emt 0:11:51]} 46. fxe3 {[%emt 0:03:48]} Bxe3+ {[%emt 0:02:59]} 47. Kh1 {[%emt 0:01:06]} fxg4 {[%emt 0:01:28]} 48. Qe4 {[%emt 0:06:01]} Bc5 {[%emt 0:04:46]} 49. Bc2 {[%emt 0:07:37]} Qf7 {[%emt 0:01:15]} 50. Qe5+ {[%emt 0:10:33]} Kg8 {[%emt 0:08:41]} 51. Qb8+ {[%emt 0:04:00]} Bf8 {[%emt 0:01:05]} 52. Qg3 {[%emt 0:00:03]} Qf1+ {[%emt 0:02:05]} 53. Kh2 {[%emt 0:00:05]} Qe2+ {[%emt 0:00:36]} 54. Qg2 {[%emt 0:00:05]} Bd6+ {[%emt 0:00:35]} 55. Kg1 {[%emt 0:00:44]} Bc5+ {[%emt 0:00:34]} 56. Kh2 {[%emt 0:01:28]} g3+ {[%emt 0:04:01]} 57. Kh3 {[%emt 0:00:08]} Qxg2+ {[%emt 0:00:46]} 58. Kxg2 {[%emt 0:00:07]} Bxa3 {[%emt 0:00:14]} 59. Kxg3 {[%emt 0:01:30]} Kg7 {[%emt 0:00:10]} 60. Kf4 {[%emt 0:01:29]} Kf6 {[%emt 0:00:10]} 61. Be4 {[%emt 0:02:34]} g5+ {[%emt 0:00:18]} 62. Kg4 {[%emt 0:00:19]} Bc1 {[%emt 0:00:36]} 63. Bc6 {[%emt 0:00:10]} Ke5 {[%emt 0:00:19]} 64. Kf3 {[%emt 0:00:26]} Kd4 {[%emt 0:00:25]} 65. Bb5 {[%emt 0:00:42]} a5 {[%emt 0:00:29]} 0-1

[Event "4NCL 2023-2024"]
[Site "Daventry"]
[Date "2024.05.04"]
[Round "9.31"]
[White "Ledger, Dave J"]
[Black "Duessler, Stefanie"]
[Result "1-0"]
[ECO "B48"]
[WhiteElo "2211"]
[BlackElo "2079"]
[Annotator "RC"]
[PlyCount "135"]
[EventDate "2023.11.11"]
[EventType "team-tourn"]
[EventCountry "ENG"]
[SourceTitle "playchess.com"]
[Source "ChessBase"]
[SourceQuality "1"]
[TimeControl "40/6000+30:3000+30"]

1. e4 {[%emt 0:00:04]} c5 {[%emt 0:00:04]} 2. Nf3 {[%emt 0:00:22]} e6 {[%emt 0:00:05]} 3. d4 {[%emt 0:00:30]} cxd4 {[%emt 0:00:06]} 4. Nxd4 {[%emt 0:00:02]} Nc6 {[%emt 0:00:07]} 5. Nc3 {[%emt 0:00:50]} Qc7 {[%emt 0:00:06]} 6. Be3 {[%emt 0:00:25]} a6 {[%emt 0:00:06]} 7. g4 {[%emt 0:01:42]} b5 {[%emt 0:06:52]} 8. Nxc6 {[%emt 0:01:32]} Qxc6 {[%emt 0:00:21]} 9. Qd2 {[%emt 0:00:47]} Bb7 {[%emt 0:03:37]} 10. O-O-O {[%emt 0:05:05]} d6 {[%emt 0:01:55]} 11. Bg2 {[%emt 0:07:01]} Nf6 {[%emt 0:03:48]} 12. g5 {[%emt 0:10:19]} Ng4 {[%emt 0:01:01]} 13. Bd4 {[%emt 0:02:02]} Ne5 {[%emt 0:15:24]} 14. b3 {[%emt 0:07:13]} Rc8 {[%emt 0:03:32]} 15. h4 {[%emt 0:12:43]} Be7 {[%emt 0:07:30]} 16. Ne2 {[%emt 0:06:25]} O-O {[%emt 0:03:40]} 17. Kb1 {[%emt 0:03:53]} a5 {[%emt 0:02:53]} 18. h5 {[%emt 0:03:55]} Bxg5 {[%emt 0:09:26]} 19. Qxg5 {[%emt 0:14:10]} Qxc2+ {[%emt 0:00:08]} 20. Ka1 {[%emt 0:00:02]} Qxe2 {[%emt 0:00:21]} 21. h6 {[%emt 0:06:17]} Qg4 {[%emt 0:00:19]} 22. Qxg4 {[%emt 0:05:19]} Nxg4 {[%emt 0:00:06]} 23. hxg7 {[%emt 0:00:23]} Rfe8 {[%emt 0:00:53]} 24. Rh4 {[%emt 0:01:45]} f5 {[%emt 0:09:19]} 25. f3 {[%emt 0:02:35]} Ne5 {[%emt 0:02:13]} 26. Bb2 {[%emt 0:07:18]} Rc2 {[%emt 0:05:29]} 27. Bh1 {[%emt 0:00:33]} Nf7 {[%emt 0:03:14]} 28. Kb1 {[%emt 0:00:52]} Re2 {[%emt 0:03:20]} 29. exf5 {[%emt 0:00:21]} exf5 {[%emt 0:00:27]} 30. f4 {[%emt 0:00:58]} Bxh1 {[%emt 0:04:12]} 31. Rhxh1 {[%emt 0:00:22]} Rf2 {[%emt 0:00:43]} 32. Rhe1 {[%emt 0:00:48]} Rb8 {[%emt 0:14:00]} 33. Rd5 {[%emt 0:01:29]} Rxf4 {[%emt 0:02:27]} 34. Rxb5 {[%emt 0:00:21]} Rc8 {[%emt 0:00:02]} 35. Rxa5 {[%emt 0:00:19]} Re4 {[%emt 0:01:46]} 36. Rf1 {[%emt 0:01:29]} Ne5 {[%emt 0:00:58]} 37. Rd5 {[%emt 0:01:13]} Rc6 {[%emt 0:01:35]} 38. Ba3 {[%emt 0:02:29]} Kxg7 {[%emt 0:01:01]} 39. Bxd6 {[%emt 0:00:10]} Kf6 {[%emt 0:03:18]} 40. Ba3 {[%emt 0:00:40]} h5 {[%emt 0:03:10]} 41. Bb2 {[%emt 0:52:36]} Re6 {[%emt 0:04:26]} 42. Rd8 {[%emt 0:00:00]} Kg5 {[%emt 0:03:52]} 43. Bc1+ {[%emt 0:00:00]} f4 {[%emt 0:01:33]} 44. Rf8 {[%emt 0:00:00]} Nd3 {[%emt 0:04:31]} 45. Rg1+ {[%emt 0:00:00]} Kh4 {[%emt 0:00:08]} 46. Rh1+ {[%emt 0:00:00]} Kg5 {[%emt 0:05:53]} 47. Bd2 {[%emt 0:00:00]} Nf2 {[%emt 0:11:57]} 48. Rf1 {[%emt 0:00:00]} Nh3 {[%emt 0:06:45]} 49. a4 {[%emt 0:00:00]} Rd4 {[%emt 0:04:20]} 50. Rg8+ {[%emt 0:00:00]} Rg6 {[%emt 0:02:11]} 51. Rxg6+ {[%emt 0:00:00]} Kxg6 {[%emt 0:00:01]} 52. Kc2 {[%emt 0:00:00]} Kf5 {[%emt 0:00:24]} 53. a5 {[%emt 0:00:00]} Ng5 {[%emt 0:02:31]} 54. a6 {[%emt 0:00:00]} Ne6 {[%emt 0:00:14]} 55. a7 {[%emt 0:00:00]} Nc7 {[%emt 0:00:25]} 56. Ra1 {[%emt 0:00:00]} Na8 {[%emt 0:09:45]} 57. Rh1 {[%emt 0:00:00]} Kg4 {[%emt 0:00:00]} 58. Rg1+ {[%emt 0:00:00]} Kf3 {[%emt 0:00:00]} 59. Rg8 {[%emt 0:00:00]} Nc7 {[%emt 0:00:00]} 60. Rc8 {[%emt 0:00:22]} Rd7 {[%emt 0:00:00]} 61. Ba5 {[%emt 0:00:34]} Na8 {[%emt 0:00:00]} 62. Rxa8 {[%emt 0:00:06]} h4 {[%emt 0:00:00]} 63. Bb6 {[%emt 0:00:38]} h3 {[%emt 0:01:52]} 64. Rh8 {[%emt 0:00:07]} Rxa7 {[%emt 0:00:05]} 65. Bxa7 {[%emt 0:00:05]} Kg2 {[%emt 0:00:06]} 66. b4 {[%emt 0:00:09]} h2 {[%emt 0:00:14]} 67. b5 {[%emt 0:00:18]} f3 {[%emt 0:00:07]} 68. Bc5 {[%emt 0:00:27]} 1-0

[Event "4NCL 2023-2024"]
[Site "Daventry"]
[Date "2024.05.04"]
[Round "9.32"]
[White "Franco, Gaston"]
[Black "Eames, Robert S"]
[Result "1-0"]
[ECO "B87"]
[WhiteElo "2061"]
[BlackElo "2175"]
[Annotator "RC"]
[PlyCount "199"]
[EventDate "2023.11.11"]
[EventType "team-tourn"]
[EventCountry "ENG"]
[SourceTitle "playchess.com"]
[Source "ChessBase"]
[SourceQuality "1"]
[TimeControl "40/6000+30:3000+30"]

1. e4 {[%emt 0:00:04]} c5 {[%emt 0:00:33]} 2. Nf3 {[%emt 0:00:12]} d6 {[%emt 0:00:15]} 3. d4 {[%emt 0:00:06]} cxd4 {[%emt 0:00:06]} 4. Nxd4 {[%emt 0:00:06]} Nf6 {[%emt 0:00:08]} 5. Nc3 {[%emt 0:00:06]} a6 {[%emt 0:00:36]} 6. Bc4 {[%emt 0:00:07]} e6 {[%emt 0:00:14]} 7. Bb3 {[%emt 0:00:10]} b5 {[%emt 0:00:38]} 8. O-O {[%emt 0:00:41]} Be7 {[%emt 0:00:26]} 9. Qf3 {[%emt 0:00:59]} Qb6 {[%emt 0:00:59]} 10. Be3 {[%emt 0:00:16]} Qb7 {[%emt 0:00:17]} 11. Qg3 {[%emt 0:00:53]} b4 {[%emt 0:01:20]} 12. Na4 {[%emt 0:03:17]} Nbd7 {[%emt 0:01:56]} 13. f3 {[%emt 0:09:12]} O-O {[%emt 0:01:00]} 14. Rad1 {[%emt 0:10:13]} Kh8 {[%emt 0:03:34]} 15. Rd2 {[%emt 0:07:53]} Rb8 {[%emt 0:11:11]} 16. Rfd1 {[%emt 0:03:52]} Ne5 {[%emt 0:02:18]} 17. Ne2 {[%emt 0:07:20]} Qc7 {[%emt 0:09:43]} 18. c4 {[%emt 0:15:53]} bxc3 {[%emt 0:06:09]} 19. Rc2 {[%emt 0:06:30]} Bd7 {[%emt 0:03:43]} 20. Nexc3 {[%emt 0:12:39]} Qa5 {[%emt 0:02:49]} 21. Qf2 {[%emt 0:03:19]} Ng6 {[%emt 0:13:58]} 22. Nb6 {[%emt 0:04:18]} Bb5 {[%emt 0:08:10]} 23. a4 {[%emt 0:09:12]} Be8 {[%emt 0:01:39]} 24. Ba2 {[%emt 0:01:11]} Nd7 {[%emt 0:06:28]} 25. Nc4 {[%emt 0:01:06]} Qc7 {[%emt 0:00:54]} 26. Rcd2 {[%emt 0:05:46]} Nc5 {[%emt 0:00:32]} 27. a5 {[%emt 0:04:14]} Nb3 {[%emt 0:07:33]} 28. Bxb3 {[%emt 0:00:23]} Rxb3 {[%emt 0:00:10]} 29. Nb6 {[%emt 0:00:23]} f5 {[%emt 0:03:31]} 30. Rd4 {[%emt 0:01:37]} f4 {[%emt 0:03:56]} 31. Bc1 {[%emt 0:01:26]} d5 {[%emt 0:02:40]} 32. Qc2 {[%emt 0:01:13]} Rb5 {[%emt 0:01:38]} 33. exd5 {[%emt 0:00:44]} Rxa5 {[%emt 0:05:36]} 34. Nc4 {[%emt 0:00:53]} e5 {[%emt 0:02:36]} 35. Re4 {[%emt 0:01:03]} Qa7+ {[%emt 0:04:07]} 36. Kh1 {[%emt 0:00:08]} Rc5 {[%emt 0:00:05]} 37. Nxe5 {[%emt 0:00:26]} Nxe5 {[%emt 0:01:12]} 38. Rxe5 {[%emt 0:00:03]} Bg6 {[%emt 0:00:32]} 39. Qf2 {[%emt 0:00:30]} Bd6 {[%emt 0:04:18]} 40. Re6 {[%emt 0:00:15]} Qc7 {[%emt 0:00:27]} 41. Qf1 {[%emt 0:05:42]} Ra5 {[%emt 0:15:32]} 42. Ne4 {[%emt 0:07:06]} Bxe4 {[%emt 0:05:32]} 43. Rxe4 {[%emt 0:00:11]} Rc5 {[%emt 0:01:23]} 44. b3 {[%emt 0:07:13]} Rb5 {[%emt 0:02:00]} 45. Rd3 {[%emt 0:04:17]} Qc2 {[%emt 0:03:11]} 46. Rc4 {[%emt 0:01:19]} Qb1 {[%emt 0:04:25]} 47. Qd1 {[%emt 0:06:41]} a5 {[%emt 0:04:44]} 48. Qc2 {[%emt 0:01:30]} Qxc2 {[%emt 0:00:36]} 49. Rxc2 {[%emt 0:00:05]} Kg8 {[%emt 0:02:15]} 50. Kg1 {[%emt 0:03:50]} Kf7 {[%emt 0:02:28]} 51. Rc6 {[%emt 0:03:47]} Rd8 {[%emt 0:00:53]} 52. Ra6 {[%emt 0:01:11]} g5 {[%emt 0:04:14]} 53. Kf1 {[%emt 0:15:29]} Bb4 {[%emt 0:00:55]} 54. d6 {[%emt 0:00:00]} Rd7 {[%emt 0:00:36]} 55. Bd2 {[%emt 0:00:00]} Bxd2 {[%emt 0:02:22]} 56. Rxd2 {[%emt 0:00:00]} Rxb3 {[%emt 0:04:24]} 57. Rxa5 {[%emt 0:00:00]} h6 {[%emt 0:00:11]} 58. h4 {[%emt 0:00:00]} gxh4 {[%emt 0:00:59]} 59. Rh5 {[%emt 0:00:00]} Kg6 {[%emt 0:00:29]} 60. Rxh4 {[%emt 0:00:00]} Rb4 {[%emt 0:01:08]} 61. Rd5 {[%emt 0:00:00]} Rb6 {[%emt 0:01:35]} 62. Rg4+ {[%emt 0:00:00]} Kh7 {[%emt 0:00:15]} 63. Rxf4 {[%emt 0:00:17]} Rbxd6 {[%emt 0:00:11]} 64. Rxd6 {[%emt 0:01:03]} Rxd6 {[%emt 0:00:05]} 65. Rg4 {[%emt 0:00:05]} h5 {[%emt 0:00:27]} 66. Rg3 {[%emt 0:02:13]} Kh6 {[%emt 0:00:16]} 67. Kf2 {[%emt 0:00:25]} h4 {[%emt 0:00:26]} 68. Rg8 {[%emt 0:01:11]} Kh5 {[%emt 0:00:36]} 69. Kg1 {[%emt 0:00:16]} Rd1+ {[%emt 0:01:16]} 70. Kh2 {[%emt 0:00:42]} Rf1 {[%emt 0:00:19]} 71. Rg4 {[%emt 0:01:12]} Re1 {[%emt 0:01:04]} 72. Ra4 {[%emt 0:00:25]} Re5 {[%emt 0:00:36]} 73. Kh3 {[%emt 0:00:16]} Re1 {[%emt 0:00:27]} 74. Rxh4+ {[%emt 0:00:06]} Kg5 {[%emt 0:00:07]} 75. Ra4 {[%emt 0:00:09]} Rb1 {[%emt 0:00:20]} 76. Kg3 {[%emt 0:00:07]} Rb5 {[%emt 0:00:07]} 77. Ra8 {[%emt 0:00:23]} Rb3 {[%emt 0:00:12]} 78. Ra5+ {[%emt 0:00:07]} Kf6 {[%emt 0:00:10]} 79. Kg4 {[%emt 0:00:07]} Rb4+ {[%emt 0:00:31]} 80. f4 {[%emt 0:01:03]} Rb6 {[%emt 0:00:09]} 81. g3 {[%emt 0:02:27]} Rc6 {[%emt 0:00:07]} 82. Kh5 {[%emt 0:00:47]} Rc3 {[%emt 0:00:07]} 83. Ra6+ {[%emt 0:00:20]} Kf5 {[%emt 0:00:08]} 84. g4+ {[%emt 0:00:15]} Kxf4 {[%emt 0:00:08]} 85. Rf6+ {[%emt 0:00:05]} Ke5 {[%emt 0:00:33]} 86. Rf1 {[%emt 0:00:04]} Ke6 {[%emt 0:00:36]} 87. Kg6 {[%emt 0:00:08]} Ke7 {[%emt 0:00:15]} 88. g5 {[%emt 0:00:09]} Rc6+ {[%emt 0:00:20]} 89. Kg7 {[%emt 0:00:08]} Rc2 {[%emt 0:00:08]} 90. Re1+ {[%emt 0:00:04]} Kd7 {[%emt 0:00:07]} 91. g6 {[%emt 0:00:05]} Rg2 {[%emt 0:00:25]} 92. Kf7 {[%emt 0:00:06]} Rf2+ {[%emt 0:00:06]} 93. Kg8 {[%emt 0:00:05]} Rg2 {[%emt 0:00:14]} 94. g7 {[%emt 0:00:05]} Rg3 {[%emt 0:00:12]} 95. Re4 {[%emt 0:00:12]} Rg2 {[%emt 0:00:37]} 96. Kf7 {[%emt 0:00:09]} Rf2+ {[%emt 0:00:07]} 97. Kg6 {[%emt 0:00:04]} Rg2+ {[%emt 0:00:09]} 98. Kf6 {[%emt 0:00:06]} Rf2+ {[%emt 0:00:05]} 99. Kg5 {[%emt 0:00:04]} Rg2+ {[%emt 0:00:04]} 100. Rg4 {[%emt 0:00:04]} 1-0